[Event "7th Paul Keres Memorial Festival 2026 Rapid"]
[Site "ESTONIA Resort Hotel & Spa conference center, EE"]
[Date "2026.08.02"]
[Round "6"]
[White "Jakubowski, Krzysztof"]
[Black "Povilaitis, Tomas"]
[Result "0-1"]
[Board "7"]
[TimeControl "12+3"]
[WhiteFideId "1112848"]
[BlackFideId "12811700"]
[WhiteElo "2365"]
[BlackElo "2154"]
[WhiteTitle "GM"]
[WhiteClock "0:00:05"]
[BlackClock "0:00:11"]
[Variant "Standard"]
[EndDate "2026.08.02"]
[EndTime "11:09:41"]

1. e4 {[%clk 0:12:04]}  c5 {[%clk 0:12:02]} 2. Nf3 {[%clk 0:12:04]}  Nc6 {[%clk 0:12:02]} 3. d4 {[%clk 0:12:04]}  cxd4 {[%clk 0:12:02]}
4. Nxd4 {[%clk 0:12:04]}  e5 {[%clk 0:12:02]} 5. Nb5 {[%clk 0:12:04]}  d6 {[%clk 0:12:02]} 6. N1c3 {[%clk 0:12:05]}  a6 {[%clk 0:12:05]}
7. Na3 {[%clk 0:12:07]}  b5 {[%clk 0:12:08]} 8. Nd5 {[%clk 0:12:07]}  Nge7 {[%clk 0:12:10]} 9. c4 {[%clk 0:12:04]}  Nxd5 {[%clk 0:12:11]}
10. cxd5 {[%clk 0:12:00]}  Nd4 {[%clk 0:12:13]} 11. Be3 {[%clk 0:11:59]}  Be7 {[%clk 0:12:14]} 12. Bd3 {[%clk 0:11:34]}  O-O {[%clk 0:12:11]}
13. O-O {[%clk 0:11:34]}  f5 {[%clk 0:10:24]} 14. Bxd4 {[%clk 0:11:28]}  exd4 {[%clk 0:10:26]} 15. exf5 {[%clk 0:10:14]}  Bxf5 {[%clk 0:10:27]}
16. Nc2 {[%clk 0:10:15]}  Qb6 {[%clk 0:09:47]} 17. Bxf5 {[%clk 0:10:00]}  Rxf5 {[%clk 0:09:46]} 18. Nxd4 {[%clk 0:10:01]}  Re5 {[%clk 0:05:35]}
19. Nc6 {[%clk 0:09:23]}  Bf6 {[%clk 0:04:18]} 20. Nxe5 {[%clk 0:09:23]}  Bxe5 {[%clk 0:04:20]} 21. Qd2 {[%clk 0:09:23]}  Rf8 {[%clk 0:04:16]}
22. g3 {[%clk 0:09:23]}  Bd4 {[%clk 0:04:10]} 23. Rae1 {[%clk 0:09:17]}  Qc5 {[%clk 0:04:05]} 24. Re2 {[%clk 0:09:01]}  Rf5 {[%clk 0:02:52]}
25. Rc1 {[%clk 0:08:25]}  Qxd5 {[%clk 0:01:40]} 26. Rd1 {[%clk 0:08:10]}  Qf3 {[%clk 0:01:10]} 27. Re8+ {[%clk 0:04:16]}  Kf7 {[%clk 0:01:10]}
28. Qxd4 {[%clk 0:04:17]}  Kxe8 {[%clk 0:01:08]} 29. Rd3 {[%clk 0:04:19]}  Qc6 {[%clk 0:00:51]} 30. Qxg7 {[%clk 0:04:03]}  Qc1+ {[%clk 0:00:47]}
31. Kg2 {[%clk 0:04:04]}  Qc6+ {[%clk 0:00:48]} 32. Kh3 {[%clk 0:03:11]}  Rh5+ {[%clk 0:00:50]} 33. Kg4 {[%clk 0:03:13]}  Qe4+ {[%clk 0:00:53]}
34. Kxh5 {[%clk 0:03:14]}  Qxd3 {[%clk 0:00:55]} 35. f4 {[%clk 0:02:30]}  d5 {[%clk 0:00:36]} 36. Qe5+ {[%clk 0:02:22]}  Kf7 {[%clk 0:00:31]}
37. f5 {[%clk 0:01:59]}  d4 {[%clk 0:00:28]} 38. Qe6+ {[%clk 0:01:52]}  Kf8 {[%clk 0:00:30]} 39. Qf6+ {[%clk 0:01:51]}  Kg8 {[%clk 0:00:22]}
40. Qd8+ {[%clk 0:01:49]}  Kf7 {[%clk 0:00:21]} 41. Qd7+ {[%clk 0:01:47]}  Kg8 {[%clk 0:00:09]} 42. Qe8+ {[%clk 0:01:09]}  Kg7 {[%clk 0:00:11]}
43. Qe7+ {[%clk 0:01:09]}  Kg8 {[%clk 0:00:13]} 44. Qe6+ {[%clk 0:00:47]}  Kf8 {[%clk 0:00:12]} 45. Qd6+ {[%clk 0:00:37]}  Kf7 {[%clk 0:00:11]}
46. Qd5+ {[%clk 0:00:36]}  Kg7 {[%clk 0:00:08]} 47. Qe5+ {[%clk 0:00:33]}  Kf7 {[%clk 0:00:10]} 48. Qe6+ {[%clk 0:00:33]}  Kf8 {[%clk 0:00:12]}
49. h4 {[%clk 0:00:12]}  Qe3 {[%clk 0:00:14]} 50. Qd6+ {[%clk 0:00:12]}  Kf7 {[%clk 0:00:15]} 51. Qd5+ {[%clk 0:00:13]}  Kf6 {[%clk 0:00:12]}
52. Qd6+ {[%clk 0:00:06]}  Kxf5 {[%clk 0:00:07]} 53. Qd5+ {[%clk 0:00:04]}  Kf6 {[%clk 0:00:09]} 54. Qd8+ {[%clk 0:00:08]}  Ke5 {[%clk 0:00:09]}
55. Qe7+ {[%clk 0:00:10]}  Kd5 {[%clk 0:00:11]} 56. Qd7+ {[%clk 0:00:06]}  Kc4 {[%clk 0:00:10]} 57. Qc7+ {[%clk 0:00:08]}  Kd5 {[%clk 0:00:08]}
58. Qd7+ {[%clk 0:00:10]}  Ke5 {[%clk 0:00:08]} 59. Qe7+ {[%clk 0:00:11]}  Kd5 {[%clk 0:00:10]} 60. Qd7+ {[%clk 0:00:14]}  Ke4 {[%clk 0:00:07]}
61. Qxh7+ {[%clk 0:00:15]}  Kf3 {[%clk 0:00:09]} 62. Qf5+ {[%clk 0:00:12]}  Kxg3 {[%clk 0:00:08]} 63. Qg5+ {[%clk 0:00:11]}  Kf2 {[%clk 0:00:08]}
64. Qc5 {[%clk 0:00:05]}  d3 {[%clk 0:00:09]} 65. Qc3 {[%clk 0:00:05]}  d2 {[%clk 0:00:11]} 0-1

[Event "7th Paul Keres Memorial Festival 2026 Rapid"]
[Site "ESTONIA Resort Hotel & Spa conference center, EE"]
[Date "2026.08.02"]
[Round "6"]
[White "Viskelis, Darius"]
[Black "Maltsevskaya, Aleksandra"]
[Result "0-1"]
[Board "8"]
[TimeControl "12+3"]
[WhiteFideId "12800830"]
[BlackFideId "24174041"]
[WhiteElo "2017"]
[BlackElo "2369"]
[WhiteTitle "FM"]
[BlackTitle "IM"]
[WhiteClock "0:00:07"]
[BlackClock "0:00:13"]
[Variant "Standard"]
[EndDate "2026.08.02"]
[EndTime "11:08:08"]

1. e4 {[%clk 0:12:03]}  c5 {[%clk 0:12:04]} 2. Nf3 {[%clk 0:12:05]}  e6 {[%clk 0:12:05]} 3. c3 {[%clk 0:12:05]}  d5 {[%clk 0:12:06]}
4. e5 {[%clk 0:12:06]}  d4 {[%clk 0:12:07]} 5. d3 {[%clk 0:12:08]}  Nc6 {[%clk 0:12:08]} 6. g3 {[%clk 0:12:07]}  Nge7 {[%clk 0:12:07]}
7. Bg2 {[%clk 0:11:52]}  Ng6 {[%clk 0:12:06]} 8. Qe2 {[%clk 0:10:47]}  Qc7 {[%clk 0:12:05]} 9. Na3 {[%clk 0:10:28]}  dxc3 {[%clk 0:11:51]}
10. bxc3 {[%clk 0:10:29]}  a6 {[%clk 0:11:00]} 11. O-O {[%clk 0:08:27]}  Be7 {[%clk 0:09:51]} 12. Nc4 {[%clk 0:07:58]}  O-O {[%clk 0:09:42]}
13. a4 {[%clk 0:07:57]}  Bd7 {[%clk 0:09:14]} 14. h4 {[%clk 0:07:54]}  b5 {[%clk 0:09:10]} 15. axb5 {[%clk 0:07:02]}  axb5 {[%clk 0:09:11]}
16. Rxa8 {[%clk 0:07:04]}  Rxa8 {[%clk 0:09:12]} 17. Nd6 {[%clk 0:07:03]}  Ngxe5 {[%clk 0:08:03]} 18. Nxb5 {[%clk 0:06:11]}  Nxf3+ {[%clk 0:08:04]}
19. Bxf3 {[%clk 0:05:36]}  Qb6 {[%clk 0:07:55]} 20. Na3 {[%clk 0:04:59]}  Rd8 {[%clk 0:06:59]} 21. Nc4 {[%clk 0:04:59]}  Qb3 {[%clk 0:06:57]}
22. Bxc6 {[%clk 0:03:26]}  Bxc6 {[%clk 0:06:57]} 23. Na5 {[%clk 0:03:28]}  Qd5 {[%clk 0:06:52]} 24. Nxc6 {[%clk 0:03:30]}  Qxc6 {[%clk 0:06:54]}
25. c4 {[%clk 0:03:12]}  Bf6 {[%clk 0:06:44]} 26. Bg5 {[%clk 0:02:48]}  Bxg5 {[%clk 0:06:13]} 27. hxg5 {[%clk 0:02:50]}  Qd6 {[%clk 0:06:15]}
28. Rd1 {[%clk 0:02:06]}  Qd4 {[%clk 0:06:04]} 29. Qe3 {[%clk 0:01:51]}  Qd6 {[%clk 0:05:13]} 30. Rb1 {[%clk 0:01:46]}  g6 {[%clk 0:05:11]}
31. Rb3 {[%clk 0:01:42]}  Kg7 {[%clk 0:02:44]} 32. Qf3 {[%clk 0:01:43]}  Qe5 {[%clk 0:02:15]} 33. Rb7 {[%clk 0:01:37]}  Qf5 {[%clk 0:01:15]}
34. Qxf5 {[%clk 0:01:17]}  gxf5 {[%clk 0:01:17]} 35. Rb3 {[%clk 0:01:12]}  Kg6 {[%clk 0:01:01]} 36. f4 {[%clk 0:01:13]}  Kh5 {[%clk 0:00:57]}
37. Kf2 {[%clk 0:00:59]}  Kg4 {[%clk 0:00:57]} 38. Ke3 {[%clk 0:00:59]}  Kxg3 {[%clk 0:00:29]} 39. Rb7 {[%clk 0:01:01]}  e5 {[%clk 0:00:25]}
40. fxe5 {[%clk 0:00:57]}  f4+ {[%clk 0:00:27]} 41. Ke2 {[%clk 0:00:32]}  f3+ {[%clk 0:00:11]} 42. Ke3 {[%clk 0:00:34]}  Re8 {[%clk 0:00:13]}
43. d4 {[%clk 0:00:18]}  cxd4+ {[%clk 0:00:11]} 44. Kxd4 {[%clk 0:00:20]}  Rf8 {[%clk 0:00:07]} 45. Ke3 {[%clk 0:00:06]}  f2 {[%clk 0:00:07]}
46. Rb1 {[%clk 0:00:08]}  Re8 {[%clk 0:00:07]} 47. Ke4 {[%clk 0:00:05]}  Rc8 {[%clk 0:00:07]} 48. Kd5 {[%clk 0:00:04]}  Rd8+ {[%clk 0:00:08]}
49. Ke4 {[%clk 0:00:06]}  Rd2 {[%clk 0:00:09]} 50. c5 {[%clk 0:00:06]}  Re2+ {[%clk 0:00:11]} 51. Kd3 {[%clk 0:00:07]}  Re1 {[%clk 0:00:13]}
52. Kd4 {[%clk 0:00:00]} 0-1

[Event "7th Paul Keres Memorial Festival 2026 Rapid"]
[Site "ESTONIA Resort Hotel & Spa conference center, EE"]
[Date "2026.08.02"]
[Round "7"]
[White "Lagarde, Maxime"]
[Black "Kazakouski, Valery"]
[Result "1/2-1/2"]
[Board "1"]
[TimeControl "12+3"]
[WhiteFideId "662399"]
[BlackFideId "13507443"]
[WhiteElo "2599"]
[BlackElo "2528"]
[WhiteTitle "GM"]
[BlackTitle "GM"]
[WhiteClock "0:00:13"]
[BlackClock "0:00:11"]
[Variant "Standard"]
[EndDate "2026.08.02"]
[EndTime "11:46:29"]

1. e4 {[%clk 0:12:05]}  e5 {[%clk 0:12:05]} 2. Nf3 {[%clk 0:12:06]}  Nc6 {[%clk 0:12:06]} 3. Bc4 {[%clk 0:12:08]}  d6 {[%clk 0:11:57]}
4. O-O {[%clk 0:12:04]}  Be7 {[%clk 0:11:57]} 5. d4 {[%clk 0:12:06]}  Nf6 {[%clk 0:11:56]} 6. d5 {[%clk 0:12:07]}  Nb8 {[%clk 0:11:58]}
7. Nc3 {[%clk 0:12:09]}  c6 {[%clk 0:11:55]} 8. a4 {[%clk 0:12:08]}  a5 {[%clk 0:11:57]} 9. Qe2 {[%clk 0:10:34]}  O-O {[%clk 0:11:57]}
10. h3 {[%clk 0:09:57]}  Nbd7 {[%clk 0:11:58]} 11. Be3 {[%clk 0:08:22]}  cxd5 {[%clk 0:10:01]} 12. Bxd5 {[%clk 0:08:08]}  Nxd5 {[%clk 0:09:27]}
13. Nxd5 {[%clk 0:08:09]}  Nf6 {[%clk 0:09:29]} 14. Nxf6+ {[%clk 0:06:53]}  Bxf6 {[%clk 0:09:30]} 15. c4 {[%clk 0:06:55]}  Be7 {[%clk 0:08:59]}
16. Rfd1 {[%clk 0:06:45]}  Qe8 {[%clk 0:09:00]} 17. Rd2 {[%clk 0:04:43]}  Qc6 {[%clk 0:08:22]} 18. Bg5 {[%clk 0:03:32]}  f6 {[%clk 0:07:15]}
19. Bh4 {[%clk 0:03:34]}  Bd8 {[%clk 0:06:42]} 20. b3 {[%clk 0:03:19]}  Bb6 {[%clk 0:06:41]} 21. Ne1 {[%clk 0:02:58]}  Bc5 {[%clk 0:06:24]}
22. g4 {[%clk 0:02:48]}  h5 {[%clk 0:05:53]} 23. Kh2 {[%clk 0:02:36]}  g5 {[%clk 0:05:47]} 24. gxh5 {[%clk 0:02:29]}  Qd7 {[%clk 0:04:46]}
25. Qf3 {[%clk 0:02:11]}  gxh4 {[%clk 0:04:00]} 26. Ng2 {[%clk 0:02:13]}  Qh7 {[%clk 0:02:29]} 27. Nxh4 {[%clk 0:02:13]}  Kf7 {[%clk 0:02:31]}
28. Ng6 {[%clk 0:02:09]}  Qh6 {[%clk 0:02:15]} 29. Rad1 {[%clk 0:01:50]}  Be6 {[%clk 0:02:07]} 30. Rxd6 {[%clk 0:01:30]}  Bxd6 {[%clk 0:01:46]}
31. Rxd6 {[%clk 0:01:32]}  Rae8 {[%clk 0:00:45]} 32. Rb6 {[%clk 0:01:17]}  Kg7 {[%clk 0:00:46]} 33. Nxf8 {[%clk 0:01:09]}  Kxf8 {[%clk 0:00:45]}
34. Rxb7 {[%clk 0:01:08]}  Re7 {[%clk 0:00:39]} 35. Rb8+ {[%clk 0:00:38]}  Kf7 {[%clk 0:00:37]} 36. Rb5 {[%clk 0:00:29]}  Ra7 {[%clk 0:00:24]}
37. Rxe5 {[%clk 0:00:27]}  Ke7 {[%clk 0:00:12]} 38. Rb5 {[%clk 0:00:23]}  Bd7 {[%clk 0:00:06]} 39. Rb6 {[%clk 0:00:19]}  Qg5 {[%clk 0:00:07]}
40. h6 {[%clk 0:00:14]}  Ra8 {[%clk 0:00:04]} 41. Qg3 {[%clk 0:00:11]}  Qxg3+ {[%clk 0:00:04]} 42. Kxg3 {[%clk 0:00:12]}  Rg8+ {[%clk 0:00:06]}
43. Kf4 {[%clk 0:00:13]}  Rg6 {[%clk 0:00:06]} 44. h7 {[%clk 0:00:13]}  Rh6 {[%clk 0:00:08]} 45. e5 {[%clk 0:00:15]}  Rh4+ {[%clk 0:00:09]}
46. Ke3 {[%clk 0:00:13]}  Rxh3+ {[%clk 0:00:12]} 47. Kd4 {[%clk 0:00:15]}  Rh4+ {[%clk 0:00:07]} 48. Kd5 {[%clk 0:00:15]}  fxe5 {[%clk 0:00:07]}
49. Kxe5 {[%clk 0:00:14]}  Rh5+ {[%clk 0:00:09]} 50. Kd4 {[%clk 0:00:13]}  Rxh7 {[%clk 0:00:11]} 51. Ke4 {[%clk 0:00:06]} 1/2-1/2

[Event "7th Paul Keres Memorial Festival 2026 Rapid"]
[Site "ESTONIA Resort Hotel & Spa conference center, EE"]
[Date "2026.08.02"]
[Round "7"]
[White "Maltsevskaya, Aleksandra"]
[Black "Shirov, Alexei"]
[Result "1-0"]
[Board "2"]
[TimeControl "12+3"]
[WhiteFideId "24174041"]
[BlackFideId "2209390"]
[WhiteElo "2369"]
[BlackElo "2616"]
[WhiteTitle "IM"]
[BlackTitle "GM"]
[WhiteClock "0:00:07"]
[BlackClock "0:00:09"]
[Variant "Standard"]
[EndDate "2026.08.02"]
[EndTime "11:46:28"]

1. e4 {[%clk 0:12:03]}  c5 {[%clk 0:12:05]} 2. Nc3 {[%clk 0:12:04]}  e6 {[%clk 0:11:28]} 3. d4 {[%clk 0:11:57]}  cxd4 {[%clk 0:11:23]}
4. Qxd4 {[%clk 0:11:58]}  Nc6 {[%clk 0:11:24]} 5. Qe3 {[%clk 0:11:59]}  Nf6 {[%clk 0:11:07]} 6. Nf3 {[%clk 0:11:58]}  d5 {[%clk 0:10:53]}
7. exd5 {[%clk 0:11:58]}  Nxd5 {[%clk 0:10:54]} 8. Nxd5 {[%clk 0:11:59]}  Qxd5 {[%clk 0:10:54]} 9. Bd3 {[%clk 0:11:31]}  Nb4 {[%clk 0:10:06]}
10. Be4 {[%clk 0:11:19]}  f5 {[%clk 0:09:28]} 11. Bxd5 {[%clk 0:10:13]}  Nxc2+ {[%clk 0:09:29]} 12. Kd1 {[%clk 0:10:14]}  Nxe3+ {[%clk 0:09:29]}
13. Bxe3 {[%clk 0:10:15]}  exd5 {[%clk 0:09:30]} 14. Re1 {[%clk 0:10:16]}  Kf7 {[%clk 0:07:29]} 15. Rc1 {[%clk 0:10:00]}  Bd6 {[%clk 0:04:51]}
16. Bd4 {[%clk 0:08:36]}  Rd8 {[%clk 0:03:46]} 17. Be5 {[%clk 0:06:09]}  Bb4 {[%clk 0:03:45]} 18. Bc3 {[%clk 0:05:53]}  Bd6 {[%clk 0:03:30]}
19. Be5 {[%clk 0:03:20]}  Bb4 {[%clk 0:03:32]} 20. Re3 {[%clk 0:03:07]}  d4 {[%clk 0:03:21]} 21. Bxd4 {[%clk 0:02:39]}  Bd6 {[%clk 0:03:11]}
22. Rd3 {[%clk 0:01:31]}  Bd7 {[%clk 0:02:48]} 23. Be5 {[%clk 0:00:44]}  Ba4+ {[%clk 0:02:41]} 24. b3 {[%clk 0:00:32]}  Be7 {[%clk 0:01:24]}
25. Bd4 {[%clk 0:00:07]}  Bb5 {[%clk 0:01:24]} 26. Rd2 {[%clk 0:00:09]}  Bd6 {[%clk 0:00:27]} 27. Be5 {[%clk 0:00:07]}  Bxe5 {[%clk 0:00:25]}
28. Nxe5+ {[%clk 0:00:09]}  Kf6 {[%clk 0:00:24]} 29. f4 {[%clk 0:00:08]}  g5 {[%clk 0:00:19]} 30. g3 {[%clk 0:00:09]}  gxf4 {[%clk 0:00:10]}
31. gxf4 {[%clk 0:00:11]}  Rxd2+ {[%clk 0:00:12]} 32. Kxd2 {[%clk 0:00:13]}  Rg8 {[%clk 0:00:13]} 33. Rc7 {[%clk 0:00:09]}  Rg2+ {[%clk 0:00:13]}
34. Ke3 {[%clk 0:00:10]}  Ba6 {[%clk 0:00:14]} 35. Rxh7 {[%clk 0:00:07]}  Rxa2 {[%clk 0:00:16]} 36. Rh6+ {[%clk 0:00:08]}  Ke7 {[%clk 0:00:16]}
37. h4 {[%clk 0:00:06]}  Rb2 {[%clk 0:00:15]} 38. h5 {[%clk 0:00:07]}  Rxb3+ {[%clk 0:00:16]} 39. Kd4 {[%clk 0:00:07]}  Rh3 {[%clk 0:00:14]}
40. Rh7+ {[%clk 0:00:04]}  Kf6 {[%clk 0:00:15]} 41. h6 {[%clk 0:00:05]}  Rh1 {[%clk 0:00:08]} 42. Rf7+ {[%clk 0:00:06]}  Ke6 {[%clk 0:00:09]}
43. h7 {[%clk 0:00:08]}  Be2 {[%clk 0:00:07]} 44. Rxb7 {[%clk 0:00:08]}  a5 {[%clk 0:00:07]} 45. Rb6+ {[%clk 0:00:05]}  Ke7 {[%clk 0:00:09]}
46. Ng6+ {[%clk 0:00:07]} 1-0

[Event "7th Paul Keres Memorial Festival 2026 Rapid"]
[Site "ESTONIA Resort Hotel & Spa conference center, EE"]
[Date "2026.08.02"]
[Round "7"]
[White "Laurusas, Tomas"]
[Black "Keinanen, Toivo"]
[Result "1-0"]
[Board "3"]
[TimeControl "12+3"]
[WhiteFideId "12803731"]
[BlackFideId "509825"]
[WhiteElo "2462"]
[BlackElo "2585"]
[WhiteTitle "GM"]
[BlackTitle "IM"]
[WhiteClock "0:01:27"]
[BlackClock "0:00:07"]
[Variant "Standard"]
[EndDate "2026.08.02"]
[EndTime "11:45:17"]

1. d4 {[%clk 0:11:59]}  d5 {[%clk 0:12:05]} 2. c4 {[%clk 0:12:01]}  e6 {[%clk 0:12:07]} 3. Nc3 {[%clk 0:12:02]}  Be7 {[%clk 0:12:04]}
4. Nf3 {[%clk 0:12:03]}  Nf6 {[%clk 0:12:06]} 5. g3 {[%clk 0:12:06]}  O-O {[%clk 0:11:26]} 6. Bg2 {[%clk 0:12:07]}  Nbd7 {[%clk 0:11:24]}
7. Qd3 {[%clk 0:11:35]}  b6 {[%clk 0:11:25]} 8. cxd5 {[%clk 0:11:36]}  exd5 {[%clk 0:11:27]} 9. O-O {[%clk 0:11:25]}  Bb7 {[%clk 0:11:29]}
10. Bf4 {[%clk 0:11:21]}  c5 {[%clk 0:10:48]} 11. dxc5 {[%clk 0:10:41]}  bxc5 {[%clk 0:10:50]} 12. Ne5 {[%clk 0:10:35]}  Nb6 {[%clk 0:10:37]}
13. Rfd1 {[%clk 0:10:34]}  Re8 {[%clk 0:10:15]} 14. Qc2 {[%clk 0:10:27]}  Bd6 {[%clk 0:09:57]} 15. Nd3 {[%clk 0:10:21]}  c4 {[%clk 0:09:37]}
16. Ne1 {[%clk 0:10:22]}  Bxf4 {[%clk 0:09:36]} 17. gxf4 {[%clk 0:10:24]}  Qc7 {[%clk 0:09:17]} 18. e3 {[%clk 0:10:23]}  Nbd7 {[%clk 0:08:46]}
19. Nxd5 {[%clk 0:10:02]}  Nxd5 {[%clk 0:08:27]} 20. Bxd5 {[%clk 0:10:03]}  Nb6 {[%clk 0:08:11]} 21. Bxb7 {[%clk 0:09:50]}  Qxb7 {[%clk 0:08:13]}
22. Rd6 {[%clk 0:09:52]}  Rac8 {[%clk 0:07:23]} 23. Rad1 {[%clk 0:09:50]}  g6 {[%clk 0:06:30]} 24. h4 {[%clk 0:09:10]}  Rc5 {[%clk 0:06:10]}
25. Rd8 {[%clk 0:09:04]}  Rxd8 {[%clk 0:05:53]} 26. Rxd8+ {[%clk 0:09:06]}  Kg7 {[%clk 0:05:56]} 27. Qc3+ {[%clk 0:08:19]}  f6 {[%clk 0:05:58]}
28. Qd4 {[%clk 0:08:04]}  Rf5 {[%clk 0:05:01]} 29. Qd6 {[%clk 0:07:40]}  Qf7 {[%clk 0:04:39]} 30. e4 {[%clk 0:07:35]}  Rb5 {[%clk 0:04:21]}
31. Nf3 {[%clk 0:06:25]}  Kh6 {[%clk 0:02:31]} 32. f5 {[%clk 0:05:02]}  gxf5 {[%clk 0:01:44]} 33. Qd2+ {[%clk 0:02:15]}  Kh5 {[%clk 0:01:32]}
34. Nd4 {[%clk 0:02:17]}  Qg6+ {[%clk 0:01:26]} 35. Kf1 {[%clk 0:02:10]}  Re5 {[%clk 0:01:04]} 36. Nxf5 {[%clk 0:02:01]}  Rxf5 {[%clk 0:00:18]}
37. exf5 {[%clk 0:02:02]}  Qxf5 {[%clk 0:00:21]} 38. Rd4 {[%clk 0:01:43]}  Qb1+ {[%clk 0:00:10]} 39. Kg2 {[%clk 0:01:45]}  Qg6+ {[%clk 0:00:08]}
40. Kh2 {[%clk 0:01:44]}  Qf5 {[%clk 0:00:08]} 41. Qf4 {[%clk 0:01:39]}  Qe6 {[%clk 0:00:06]} 42. Rd6 {[%clk 0:01:31]}  Qe5 {[%clk 0:00:07]}
43. Rxf6 {[%clk 0:01:27]} 1-0

[Event "7th Paul Keres Memorial Festival 2026 Rapid"]
[Site "ESTONIA Resort Hotel & Spa conference center, EE"]
[Date "2026.08.02"]
[Round "7"]
[White "Mayorau, Mikita"]
[Black "Harikrishnan.A.Ra"]
[Result "1/2-1/2"]
[Board "4"]
[TimeControl "12+3"]
[WhiteFideId "13501720"]
[BlackFideId "5081483"]
[WhiteElo "2392"]
[BlackElo "2404"]
[WhiteTitle "GM"]
[BlackTitle "GM"]
[WhiteClock "0:01:51"]
[BlackClock "0:03:09"]
[Variant "Standard"]
[EndDate "2026.08.02"]
[EndTime "11:41:31"]

1. d4 {[%clk 0:12:05]}  Nf6 {[%clk 0:12:05]} 2. c4 {[%clk 0:12:06]}  g6 {[%clk 0:12:07]} 3. g3 {[%clk 0:12:07]}  Bg7 {[%clk 0:12:09]}
4. Bg2 {[%clk 0:12:08]}  O-O {[%clk 0:12:10]} 5. Nc3 {[%clk 0:12:09]}  d6 {[%clk 0:12:11]} 6. Nf3 {[%clk 0:12:10]}  c6 {[%clk 0:12:12]}
7. O-O {[%clk 0:12:10]}  Bf5 {[%clk 0:12:14]} 8. b3 {[%clk 0:11:36]}  Ne4 {[%clk 0:12:09]} 9. Bb2 {[%clk 0:11:37]}  Nxc3 {[%clk 0:12:08]}
10. Bxc3 {[%clk 0:11:39]}  Be4 {[%clk 0:12:09]} 11. e3 {[%clk 0:11:27]}  e6 {[%clk 0:11:20]} 12. Qe2 {[%clk 0:11:25]}  d5 {[%clk 0:11:11]}
13. Rfd1 {[%clk 0:11:26]}  Nd7 {[%clk 0:11:09]} 14. Bf1 {[%clk 0:11:26]}  Bxf3 {[%clk 0:11:10]} 15. Qxf3 {[%clk 0:11:27]}  Nf6 {[%clk 0:11:04]}
16. Bd3 {[%clk 0:11:01]}  Qc7 {[%clk 0:11:04]} 17. Rac1 {[%clk 0:10:59]}  Rad8 {[%clk 0:11:01]} 18. a4 {[%clk 0:10:48]}  Rfe8 {[%clk 0:10:51]}
19. b4 {[%clk 0:10:10]}  dxc4 {[%clk 0:10:44]} 20. Bxc4 {[%clk 0:10:10]}  Nd5 {[%clk 0:10:45]} 21. Be1 {[%clk 0:10:05]}  a6 {[%clk 0:09:32]}
22. b5 {[%clk 0:09:42]}  axb5 {[%clk 0:09:34]} 23. axb5 {[%clk 0:09:44]}  Qd6 {[%clk 0:09:21]} 24. bxc6 {[%clk 0:09:20]}  bxc6 {[%clk 0:09:23]}
25. Bb3 {[%clk 0:09:13]}  Qa3 {[%clk 0:08:59]} 26. Bc4 {[%clk 0:09:07]}  h5 {[%clk 0:08:51]} 27. Be2 {[%clk 0:08:52]}  Rc8 {[%clk 0:08:33]}
28. Rc2 {[%clk 0:08:12]}  c5 {[%clk 0:05:41]} 29. Rdc1 {[%clk 0:07:54]}  Bf8 {[%clk 0:04:43]} 30. e4 {[%clk 0:06:23]}  Qxf3 {[%clk 0:04:45]}
31. Bxf3 {[%clk 0:06:24]}  Nc7 {[%clk 0:04:00]} 32. dxc5 {[%clk 0:06:23]}  Nb5 {[%clk 0:04:02]} 33. Kg2 {[%clk 0:04:41]}  Nd4 {[%clk 0:03:53]}
34. Rc3 {[%clk 0:04:34]}  Rc6 {[%clk 0:03:39]} 35. Bd2 {[%clk 0:03:45]}  Rec8 {[%clk 0:03:30]} 36. Be3 {[%clk 0:03:43]}  e5 {[%clk 0:03:32]}
37. Bxd4 {[%clk 0:02:48]}  exd4 {[%clk 0:03:34]} 38. Rd3 {[%clk 0:02:30]}  Rxc5 {[%clk 0:03:35]} 39. Rxc5 {[%clk 0:02:31]}  Bxc5 {[%clk 0:03:36]}
40. Be2 {[%clk 0:01:58]}  Rb8 {[%clk 0:03:39]} 41. Bd1 {[%clk 0:01:53]}  Re8 {[%clk 0:03:09]} 42. Kf3 {[%clk 0:01:51]} 1/2-1/2

[Event "7th Paul Keres Memorial Festival 2026 Rapid"]
[Site "ESTONIA Resort Hotel & Spa conference center, EE"]
[Date "2026.08.02"]
[Round "7"]
[White "Povilaitis, Tomas"]
[Black "Ter-Avetisjana, Agnesa Stepania"]
[Result "1-0"]
[Board "5"]
[TimeControl "12+3"]
[WhiteFideId "12811700"]
[BlackFideId "11614900"]
[WhiteElo "2154"]
[BlackElo "2160"]
[BlackTitle "WIM"]
[WhiteClock "0:01:18"]
[BlackClock "0:00:06"]
[Variant "Standard"]
[EndDate "2026.08.02"]
[EndTime "11:44:58"]

1. e4 {[%clk 0:12:05]}  c6 {[%clk 0:12:05]} 2. c4 {[%clk 0:12:07]}  d5 {[%clk 0:12:07]} 3. exd5 {[%clk 0:12:08]}  cxd5 {[%clk 0:12:09]}
4. cxd5 {[%clk 0:12:06]}  Nf6 {[%clk 0:12:11]} 5. Qa4+ {[%clk 0:12:12]}  Nbd7 {[%clk 0:11:50]} 6. Nc3 {[%clk 0:12:14]}  g6 {[%clk 0:11:51]}
7. Nf3 {[%clk 0:12:15]}  Bg7 {[%clk 0:11:52]} 8. Bc4 {[%clk 0:12:15]}  O-O {[%clk 0:11:51]} 9. d3 {[%clk 0:12:17]}  Nc5 {[%clk 0:11:12]}
10. Qd1 {[%clk 0:11:52]}  a6 {[%clk 0:10:51]} 11. a4 {[%clk 0:11:48]}  b6 {[%clk 0:10:47]} 12. O-O {[%clk 0:11:46]}  Bb7 {[%clk 0:10:49]}
13. b4 {[%clk 0:11:28]}  Nxd5 {[%clk 0:08:53]} 14. Bxd5 {[%clk 0:08:49]}  Bxd5 {[%clk 0:06:30]} 15. d4 {[%clk 0:07:38]}  Bxf3 {[%clk 0:06:30]}
16. Qxf3 {[%clk 0:07:40]}  Nb3 {[%clk 0:05:24]} 17. Rb1 {[%clk 0:07:09]}  Nxd4 {[%clk 0:05:24]} 18. Qe4 {[%clk 0:06:40]}  Rc8 {[%clk 0:04:47]}
19. Ne2 {[%clk 0:06:22]}  Nxe2+ {[%clk 0:02:46]} 20. Qxe2 {[%clk 0:06:24]}  e6 {[%clk 0:02:49]} 21. Be3 {[%clk 0:06:23]}  Ra8 {[%clk 0:01:58]}
22. Rfd1 {[%clk 0:06:24]}  Qb8 {[%clk 0:02:01]} 23. b5 {[%clk 0:06:07]}  axb5 {[%clk 0:01:30]} 24. Qxb5 {[%clk 0:06:09]}  Ra5 {[%clk 0:00:46]}
25. Qd7 {[%clk 0:05:27]}  Qa8 {[%clk 0:00:23]} 26. Rb4 {[%clk 0:05:29]}  Rc8 {[%clk 0:00:05]} 27. Bxb6 {[%clk 0:04:44]}  Rd5 {[%clk 0:00:07]}
28. Rxd5 {[%clk 0:04:46]}  exd5 {[%clk 0:00:10]} 29. Rb1 {[%clk 0:03:55]}  h5 {[%clk 0:00:05]} 30. a5 {[%clk 0:03:53]}  Rc2 {[%clk 0:00:06]}
31. Rd1 {[%clk 0:03:33]}  Ra2 {[%clk 0:00:07]} 32. h3 {[%clk 0:03:22]}  d4 {[%clk 0:00:04]} 33. Re1 {[%clk 0:02:36]}  Bf8 {[%clk 0:00:07]}
34. Qxd4 {[%clk 0:02:27]}  Qc6 {[%clk 0:00:10]} 35. Qd8 {[%clk 0:01:54]}  Kg7 {[%clk 0:00:05]} 36. Bd4+ {[%clk 0:01:43]}  f6 {[%clk 0:00:08]}
37. Rd1 {[%clk 0:01:21]}  Qa4 {[%clk 0:00:05]} 38. Qxf6+ {[%clk 0:01:16]}  Kh7 {[%clk 0:00:06]} 39. Qh8# {[%clk 0:01:18]} 1-0